[Event "GER-chT Youth Countries 2018"]
[Site "Wurzburg"]
[Date "2018.10.03"]
[Round "1"]
[White "Engel, Robert"]
[Black "Garbuz, Vitaliy"]
[Result "1-0"]
[ECO "C55"]
[WhiteElo "2059"]
[BlackElo "2182"]
[Annotator "NA"]
[PlyCount "147"]
[EventDate "2018.10.03"]
[EventType "team-tourn"]
[EventCountry "GER"]
[SourceTitle "playchess.com"]
[Source "ChessBase"]
[SourceQuality "1"]
[TimeControl "40/5400+30:1800+30"]

1. e4 {[%emt 0:00:00]} e5 {[%emt 0:00:00]} 2. Nf3 {[%emt 0:00:00]} Nc6 {[%emt 0:00:00]} 3. Bc4 {[%emt 0:00:00]} Nf6 {[%emt 0:00:09]} 4. d3 {[%emt 0:00:00]} Qe7 {[%emt 0:00:35]} (4... Be7 5. Nc3 O-O 6. a3 d6 7. Be3 Kh8 8. Ng5 Qe8 9. h4 h6 10. f3 Nd4 11. Qd2 b5 12. Ba2 c6 13. O-O-O a5 {0-1 (40) Duda,J (2737)-Grischuk,A (2766) chess.com INT 2018}) 5. Nc3 {[%emt 0:07:25]} Na5 {[%emt 0:00:39] LiveBook: 3 Games} 6. O-O {[%emt 0:05:26] C55: Two Knights: 4 d3, 4 d4 exd4 5 e5 and Max Lange Attack} Nxc4 {[%emt 0:02:09]} 7. dxc4 {[%emt 0:00:06]} d6 {[%emt 0:01:03]} 8. h3 $146 {[%emt 0:01:48] White is slightly better.} ({Predecessor:} 8. Qd3 c6 9. b3 Nd7 10. Ba3 Nc5 11. Qe3 Bg4 12. Ne1 {0-1 (28) Martidis,A (2360)-Nikolaidis,I (2425) Athens 1994}) 8... Be6 {[%emt 0:00:35]} 9. Qd3 {[%emt 0:02:46]} g6 {[%emt 0:01:43]} 10. b4 {[%emt 0:07:40]} a5 {[%emt 0:00:59]} 11. bxa5 {[%emt 0:03:05]} Rxa5 {[%emt 0:00:58]} 12. Nd2 {[%emt 0:02:47]} (12. Bd2 $11) 12... Bg7 $15 {[%emt 0:03:09]} 13. Nb3 {[%emt 0:02:03]} Ra8 {[%emt 0:00:46]} 14. Be3 {[%emt 0:05:12]} O-O {[%emt 0:00:33]} 15. c5 {[%emt 0:01:23]} Rfd8 {[%emt 0:04:20]} 16. cxd6 $1 {[%emt 0:02:58]} Qxd6 {[%emt 0:12:24]} 17. Qb5 {[%emt 0:04:19]} Bd7 {[%emt 0:02:38]} 18. Qc4 {[%emt 0:04:03]} Be6 {[%emt 0:03:46]} 19. Qb5 $1 {[%emt 0:00:47]} Bd7 {[%emt 0:08:16]} 20. Qc4 $1 {[%emt 0:01:32]} Qc6 {[%emt 0:03:54]} 21. Qxc6 {[%emt 0:03:11]} Bxc6 {[%emt 0:00:06]} ({Of course not} 21... bxc6 $6 22. Nc5 $14) 22. f3 {[%emt 0:00:52]} b5 {[%emt 0:07:55]} 23. Rfd1 {[%emt 0:06:03]} Rxd1+ {[%emt 0:02:55]} 24. Nxd1 {[%emt 0:00:19]} Bf8 {[%emt 0:02:44]} 25. Kf2 {[%emt 0:03:44]} Nd7 {[%emt 0:03:08]} 26. g4 {[%emt 0:04:20]} Nb6 {[%emt 0:01:44]} 27. Bxb6 {[%emt 0:01:21]} cxb6 {[%emt 0:00:13]} 28. Nb2 {[%emt 0:02:33]} Bb4 {[%emt 0:01:03] White must now prevent ...Bc3.Black is better.} 29. Nd1 {[%emt 0:02:03]} Bd7 {[%emt 0:02:01]} 30. Ke2 {[%emt 0:02:21]} Be6 {[%emt 0:01:30] Precision: White = 41%, Black = 65%.} 31. Ne3 {[%emt 0:05:50]} Bc3 {[%emt 0:00:50]} 32. Rd1 {[%emt 0:00:05]} Rxa2 {[%emt 0:00:30]} 33. Rd8+ {[%emt 0:00:16]} Kg7 {[%emt 0:00:11]} 34. Kd3 {[%emt 0:00:19]} Bb4 {[%emt 0:02:27]} 35. Nd5 {[%emt 0:02:26]} Bc5 {[%emt 0:11:57]} 36. g5 {[%emt 0:01:50]} f5 {[%emt 0:16:21]} 37. gxf6+ {[%emt 0:03:59]} Kf7 {[%emt 0:00:02]} 38. Rh8 {[%emt 0:01:03]} Bxd5 {[%emt 0:02:15]} 39. Rxh7+ {[%emt 0:00:16]} Kg8 {[%emt 0:00:14]} 40. Rg7+ {[%emt 0:00:08]} Kf8 {[%emt 0:00:13]} 41. exd5 {[%emt 0:30:17]} Ra4 {[%emt 0:31:41]} 42. Rc7 {[%emt 0:02:10]} Rc4 {[%emt 0:00:00]} 43. c3 {[%emt 0:00:00]} Rf4 {[%emt 0:00:00]} 44. Nxc5 {[%emt 0:00:00]} bxc5 {[%emt 0:00:00]} 45. Rxc5 {[%emt 0:00:00]} Rxf6 {[%emt 0:00:00]} 46. Ke3 {[%emt 0:00:00]} Rf4 {[%emt 0:00:00]} 47. Rxb5 {[%emt 0:00:00]} Rc4 {[%emt 0:00:00]} 48. d6 {[%emt 0:00:00]} Rxc3+ {[%emt 0:00:00]} 49. Ke4 {[%emt 0:00:00]} Ke8 {[%emt 0:00:00]} 50. Rxe5+ {[%emt 0:00:00]} Kd7 {[%emt 0:00:00]} 51. Rd5 {[%emt 0:00:00]} Rc4+ {[%emt 0:00:00]} 52. Rd4 {[%emt 0:00:00]} Rc5 {[%emt 0:00:00]} 53. Kf4 {[%emt 0:00:00]} Rf5+ {[%emt 0:00:00]} 54. Kg4 {[%emt 0:00:00]} Rh5 {[%emt 0:00:00]} 55. h4 {[%emt 0:00:00]} Rc5 {[%emt 0:00:00]} 56. f4 {[%emt 0:00:00]} Rb5 {[%emt 0:00:00]} 57. Ra4 {[%emt 0:00:00]} Kxd6 {[%emt 0:00:55]} 58. Ra6+ {[%emt 0:00:00]} Ke7 {[%emt 0:00:05]} 59. Rxg6 {[%emt 0:00:00]} Kf7 {[%emt 0:00:09]} 60. h5 {[%emt 0:00:00]} Rb1 {[%emt 0:01:07]} 61. Ra6 {[%emt 0:00:00]} Rg1+ {[%emt 0:00:19]} 62. Kf5 {[%emt 0:00:01]} Rh1 {[%emt 0:00:41]} 63. Ra7+ {[%emt 0:00:18]} Kg8 {[%emt 0:00:21]} 64. Kg6 {[%emt 0:02:40]} Rg1+ {[%emt 0:00:03]} 65. Kf6 {[%emt 0:00:21]} Rh1 {[%emt 0:01:04]} 66. f5 {[%emt 0:02:09]} Rb1 {[%emt 0:00:53]} 67. Rg7+ {[%emt 0:01:51]} Kh8 {[%emt 0:00:58]} 68. Re7 {[%emt 0:00:04]} Rb6+ {[%emt 0:00:24]} 69. Re6 {[%emt 0:01:02]} Rb8 {[%emt 0:00:29]} 70. Kg6 {[%emt 0:00:26]} Rg8+ {[%emt 0:01:41]} 71. Kh6 {[%emt 0:00:28]} Rf8 {[%emt 0:00:10]} 72. f6 {[%emt 0:00:20]} Kg8 {[%emt 0:00:20]} 73. Kg6 {[%emt 0:00:18]} Kh8 {[%emt 0:00:30]} 74. f7 1-0

[Event "GER-chT Youth Countries 2018"]
[Site "Wurzburg"]
[Date "2018.10.03"]
[Round "1"]
[White "Lutz, Ruben"]
[Black "Wong, Gengchun"]
[Result "0-1"]
[ECO "A40"]
[WhiteElo "2043"]
[BlackElo "2194"]
[Annotator "NA"]
[PlyCount "140"]
[EventDate "2018.10.03"]
[EventType "team-tourn"]
[EventCountry "GER"]
[SourceTitle "playchess.com"]
[Source "ChessBase"]
[SourceQuality "1"]
[TimeControl "40/5400+30:1800+30"]

1. d4 {[%emt 0:00:00]} b5 {[%emt 0:00:00]} 2. Bf4 {[%emt 0:00:04]} Nf6 {[%emt 0:00:00]} 3. e3 {[%emt 0:00:24]} Bb7 {[%emt 0:00:18]} 4. Nd2 {[%emt 0:01:29]} (4. Nf3 a6 5. c4 bxc4 6. Bxc4 e6 7. Nc3 d5 8. Bd3 Nbd7 9. O-O Be7 10. Na4 c5 11. Nxc5 Nxc5 12. dxc5 Bxc5 13. Rc1 {½-½ (81) Caruana,F (2816)-Vachier Lagrave,M (2789) Paris 2018}) 4... e6 {[%emt 0:03:18]} 5. Ngf3 {[%emt 0:00:59]} a6 {[%emt 0:00:22]} 6. h3 {[%emt 0:02:57] A40: Unusual replies to 1 d4} c5 {[%emt 0:05:37] LiveBook: 3 Games} 7. c3 {[%emt 0:01:30]} d5 {[%emt 0:01:11]} 8. Bd3 {[%emt 0:02:24] The position is equal.} Bd6 {[%emt 0:01:52]} 9. Ne5 {[%emt 0:11:53]} (9. dxc5 {with more complications.} Bxc5 10. O-O O-O 11. Nb3 Be7 12. a4) 9... Nc6 {[%emt 0:09:05]} 10. Nxc6 $146 {[%emt 0:02:35]} ({Predecessor:} 10. Ndf3 Qc7 11. O-O Ne4 12. Rc1 c4 13. Bc2 f6 14. Nxc6 Bxc6 15. Bxd6 Qxd6 16. Nd2 {½-½ (16) Rackowiak,H (2011)-Franke,R (2054) Bergen 2014}) 10... Bxc6 {[%emt 0:00:10]} 11. Bxd6 {[%emt 0:01:01]} Qxd6 {[%emt 0:00:05]} 12. dxc5 {[%emt 0:07:52]} Qxc5 {[%emt 0:00:10]} 13. Qe2 {[%emt 0:02:06]} O-O {[%emt 0:05:34]} 14. O-O {[%emt 0:00:43]} Rad8 {[%emt 0:01:46]} 15. Rfd1 {[%emt 0:08:13]} Rfe8 {[%emt 0:17:29]} 16. e4 {[%emt 0:10:25]} e5 {[%emt 0:01:34]} 17. Qf3 {[%emt 0:23:16]} Qe7 {[%emt 0:04:59]} 18. Re1 {[%emt 0:08:21]} g6 {[%emt 0:10:16] [#] aiming for ...dxe4.} 19. g3 $2 {[%emt 0:04:52] Precision: White = 23%, Black = 48%.} (19. Qe3 $15) 19... Kg7 20. Rad1 {[%emt 0:02:51]} Bd7 {[%emt 0:12:37]} 21. Bf1 {[%emt 0:02:10]} Bc6 {[%emt 0:00:50]} 22. Bd3 {[%emt 0:01:48]} Bb7 {[%emt 0:01:03]} 23. Qe2 {[%emt 0:01:04]} Bc8 {[%emt 0:02:25]} 24. Kh2 {[%emt 0:00:49]} h5 {[%emt 0:00:16]} 25. exd5 {[%emt 0:00:36]} h4 {[%emt 0:02:20]} 26. Nf3 {[%emt 0:01:45]} hxg3+ {[%emt 0:00:33]} 27. fxg3 {[%emt 0:00:04]} Rxd5 {[%emt 0:00:09]} 28. c4 {[%emt 0:00:27]} bxc4 {[%emt 0:00:59]} 29. Bxc4 {[%emt 0:00:06]} Rxd1 {[%emt 0:00:03]} 30. Rxd1 {[%emt 0:00:13]} Rh8 {[%emt 0:00:11]} 31. Qxe5 {[%emt 0:00:41]} Qa7 {[%emt 0:05:12]} 32. Qd4 {[%emt 0:00:44]} Qxd4 {[%emt 0:00:36]} 33. Rxd4 {[%emt 0:00:19]} Rxh3+ {[%emt 0:01:11]} 34. Kg2 {[%emt 0:00:03]} Rh5 {[%emt 0:00:36]} 35. b3 {[%emt 0:00:39]} Bb7 {[%emt 0:01:08]} 36. Rf4 {[%emt 0:01:41]} g5 {[%emt 0:01:13]} 37. g4 {[%emt 0:00:47]} Rh4 {[%emt 0:00:15]} 38. Rd4 {[%emt 0:00:32]} Nxg4 {[%emt 0:02:25]} 39. Bxa6 {[%emt 0:00:30]} Ne3+ {[%emt 0:06:19]} 40. Kf2 {[%emt 0:00:05]} Rxd4 {[%emt 0:00:07]} 41. Nxd4 {[%emt 0:30:07]} Nd1+ {[%emt 0:30:08]} 42. Ke1 {[%emt 0:01:19]} Bxa6 {[%emt 0:00:05]} 43. Kxd1 {[%emt 0:00:05]} Kf6 {[%emt 0:00:45]} 44. Kd2 {[%emt 0:00:00]} Ke5 {[%emt 0:00:00]} 45. Ke3 {[%emt 0:00:00]} f5 {[%emt 0:00:00]} 46. Nc6+ {[%emt 0:00:00]} Kf6 {[%emt 0:00:00]} 47. Nb4 {[%emt 0:00:00]} Bb7 {[%emt 0:00:00]} 48. Nd3 {[%emt 0:00:00]} Ke7 {[%emt 0:00:00]} 49. a4 {[%emt 0:00:00]} Bc6 {[%emt 0:00:00]} 50. a5 {[%emt 0:00:00]} Kd6 {[%emt 0:00:00]} 51. a6 {[%emt 0:00:00]} Kc7 {[%emt 0:00:00]} 52. Ne5 {[%emt 0:03:36]} f4+ {[%emt 0:00:00]} 53. Ke2 {[%emt 0:01:05]} Ba8 {[%emt 0:00:00]} 54. b4 {[%emt 0:01:02]} Kb6 {[%emt 0:00:00]} 55. Ng4 {[%emt 0:00:36]} Kxa6 {[%emt 0:00:00]} 56. Nf6 {[%emt 0:00:39]} Kb5 {[%emt 0:00:00]} 57. Nh7 {[%emt 0:00:07]} g4 {[%emt 0:00:00]} 58. Nf6 {[%emt 0:00:06]} g3 {[%emt 0:00:00]} 59. Nh5 {[%emt 0:00:06]} f3+ {[%emt 0:00:00]} 60. Kf1 {[%emt 0:00:07]} g2+ {[%emt 0:00:00]} 61. Kf2 {[%emt 0:00:15]} Kxb4 {[%emt 0:00:00]} 62. Nf4 {[%emt 0:01:13]} Kc4 {[%emt 0:00:00]} 63. Kg1 {[%emt 0:01:33]} Kd4 {[%emt 0:00:00]} 64. Nh3 {[%emt 0:00:24]} Ke3 {[%emt 0:00:00]} 65. Nf2 {[%emt 0:00:17]} Ke2 {[%emt 0:00:11]} 66. Nh3 {[%emt 0:00:27]} Bb7 {[%emt 0:00:10]} 67. Nf2 {[%emt 0:00:08]} Bc8 {[%emt 0:01:27]} 68. Ne4 {[%emt 0:00:06]} Bf5 {[%emt 0:00:12]} 69. Nf2 {[%emt 0:01:20]} Ke1 {[%emt 0:00:06]} 70. Kh2 {[%emt 0:00:06]} Kf1 {[%emt 0:00:11]} 0-1

[Event "GER-chT Youth Countries 2018"]
[Site "Wurzburg"]
[Date "2018.10.03"]
[Round "1"]
[White "Noeldner, Julian"]
[Black "Krastev, Alexander"]
[Result "0-1"]
[ECO "C55"]
[WhiteElo "2024"]
[BlackElo "2298"]
[Annotator "NA"]
[PlyCount "95"]
[EventDate "2018.10.03"]
[EventType "team-tourn"]
[EventCountry "GER"]
[SourceTitle "playchess.com"]
[Source "ChessBase"]
[SourceQuality "1"]
[TimeControl "40/5400+30:1800+30"]

{[%evp 44,92,47,48,32767,64,32767,32767,54,58,72,56,64,50,59,51,56,50,53,51,47,28,29,15,25,7,47,14,21,15,27,-40,-20,-107,32767,32767,32767,32767,-72,-76,-53,-56,-66,-72,-58,-54,-51,32767,-41,-41,-9]} 1. e4 {[%emt 0:00:00]} e5 {[%emt 0:00:00]} 2. Nf3 {[%emt 0:00:00]} Nc6 {[%emt 0:00:00]} 3. Bc4 {[%emt 0:00:34]} Nf6 {[%emt 0:00:00]} 4. d3 {[%emt 0:00:30]} Be7 {[%emt 0:00:09]} 5. O-O {[%emt 0:00:11]} O-O {[%emt 0:00:05]} 6. Re1 {[%emt 0:00:04]} d6 {[%emt 0:00:13]} 7. a4 {[%emt 0:00:06]} h6 {[%emt 0:00:27]} 8. a5 {[%emt 0:00:56] C55: Two Knights: 4 d3, 4 d4 exd4 5 e5 and Max Lange Attack} (8. c3 a6 9. Nbd2 Be6 10. Qc2 Qd7 11. b4 Nh7 12. Bxe6 fxe6 13. Bb2 b6 14. b5 axb5 15. axb5 Na5 16. c4 {½-½ (54) So,W (2812)-Ivanchuk,V (2738) Leuven 2017}) 8... a6 {[%emt 0:00:05]} 9. c3 {[%emt 0:00:04]} Nh7 {[%emt 0:00:41]} 10. d4 {[%emt 0:00:08]} Bg4 {[%emt 0:07:18]} 11. d5 {[%emt 0:10:21]} Nb8 {[%emt 0:01:21]} 12. h3 {[%emt 0:00:51]} Bh5 {[%emt 0:00:38]} 13. Be2 $146 {[%emt 0:01:09]} ({Predecessor:} 13. b4 Nd7 14. Nbd2 {1-0 (47) Saric,I (2511)-Orak,L (2315) Sibenik 2008}) 13... Bg6 {[%emt 0:06:56]} 14. Bd3 {[%emt 0:02:47]} Ng5 {[%emt 0:01:20]} 15. c4 {[%emt 0:01:53]} c5 {[%emt 0:09:48]} 16. Nc3 {[%emt 0:18:46]} Nxf3+ {[%emt 0:07:50]} 17. Qxf3 {[%emt 0:00:11]} Bg5 {[%emt 0:00:14]} 18. Ne2 {[%emt 0:07:24]} Nd7 {[%emt 0:11:07]} 19. Ng3 {[%emt 0:02:08]} Qf6 {[%emt 0:18:53]} 20. Qg4 {[%emt 0:06:15]} Rfd8 {[%emt 0:00:53]} 21. Bc2 {[%emt 0:02:44]} Rab8 {[%emt 0:05:46]} 22. Ra3 {[%emt 0:10:23]} Bxc1 {[%emt 0:01:24]} 23. Rxc1 {[%emt 0:00:04]} Qg5 {[%emt 0:00:50]} 24. Qxg5 {[%emt 0:03:00]} hxg5 {[%emt 0:00:06]} 25. Rb1 {[%emt 0:00:03]} Rdc8 {[%emt 0:05:35]} 26. Bd1 {[%emt 0:05:20]} Rc7 {[%emt 0:04:51]} 27. Bg4 {[%emt 0:02:08]} Nf6 {[%emt 0:00:43]} 28. f3 {[%emt 0:00:13]} b5 {[%emt 0:02:36]} 29. axb6 $1 {[%emt 0:00:16]} Rxb6 {[%emt 0:00:05]} 30. b3 {[%emt 0:04:06]} Ne8 {[%emt 0:01:37]} 31. Rba1 {[%emt 0:01:45]} Ra7 {[%emt 0:00:48]} 32. Bf5 {[%emt 0:03:46]} Bxf5 {[%emt 0:02:09]} 33. Nxf5 {[%emt 0:00:05]} g6 {[%emt 0:00:18]} 34. Ne3 {[%emt 0:00:10]} Nc7 {[%emt 0:00:49]} 35. Nd1 {[%emt 0:08:45]} Rab7 {[%emt 0:00:35]} 36. Rb1 {[%emt 0:00:07]} Rb4 {[%emt 0:00:29]} 37. Kf1 {[%emt 0:01:57]} (37. Ne3 $11) 37... Rxc4 {[%emt 0:01:16]} 38. Ne3 {[%emt 0:05:28]} (38. Rba1 $11 {remains equal.} Rcb4 39. Ne3) 38... Rcb4 {[%emt 0:00:37]} 39. Nc2 {[%emt 0:00:09]} R4b5 {[%emt 0:04:56]} 40. Ne3 {[%emt 0:00:18]} Kf8 {[%emt 0:01:56]} 41. Nc4 {[%emt 0:07:34]} Ke7 {[%emt 0:00:59]} 42. Na5 {[%emt 0:00:47]} R7b6 {[%emt 0:00:18]} 43. Ke2 {[%emt 0:04:41]} Kd7 {[%emt 0:01:18]} 44. Kd3 {[%emt 0:00:26]} Rb4 {[%emt 0:01:58]} 45. Nc6 {[%emt 0:00:25]} c4+ {[%emt 0:00:33]} 46. Kc2 {[%emt 0:00:54]} cxb3+ $11 {[%emt 0:17:40]} 47. Rbxb3 {[%emt 0:04:49]} R4b5 {[%emt 0:04:08]} 48. Na7 {[%emt 0:02:42]} 0-1

[Event "GER-chT Youth Countries 2018"]
[Site "Wurzburg"]
[Date "2018.10.03"]
[Round "1"]
[White "Fromm, Marius"]
[Black "Karsay, Pascal"]
[Result "0-1"]
[ECO "A13"]
[WhiteElo "2022"]
[BlackElo "2261"]
[Annotator "NA"]
[PlyCount "88"]
[EventDate "2018.10.03"]
[EventType "team-tourn"]
[EventCountry "GER"]
[SourceTitle "playchess.com"]
[Source "ChessBase"]
[SourceQuality "1"]
[TimeControl "40/5400+30:1800+30"]

1. Nf3 {[%emt 0:00:00]} Nf6 {[%emt 0:00:00]} 2. c4 {[%emt 0:00:00]} e6 {[%emt 0:00:00]} 3. g3 {[%emt 0:00:00]} d5 {[%emt 0:00:04]} 4. Bg2 {[%emt 0:00:33]} dxc4 {[%emt 0:00:55]} 5. Qa4+ {[%emt 0:00:14]} Nbd7 {[%emt 0:01:16]} 6. Qxc4 {[%emt 0:00:56]} c5 {[%emt 0:01:01]} 7. a4 {[%emt 0:18:59] A13: English Opening: 1...e6} (7. O-O a6 8. Qb3 Ra7 9. a4 b6 10. Na3 Bd6 11. Nc4 Bc7 12. d3 Bb7 13. e4 O-O 14. Be3 Bc6 15. h3 Qb8 16. Qc3 {1-0 (36) Navara,D (2720)-Vovk,Y (2614) Slovakia 2018}) 7... b6 {[%emt 0:11:05]} 8. Nc3 {[%emt 0:06:24]} Bb7 {[%emt 0:04:47]} 9. O-O {[%emt 0:01:43]} a6 {[%emt 0:15:26] LiveBook: 3 Games} 10. Qb3 {[%emt 0:04:40]} Rc8 {[%emt 0:04:27]} 11. d3 {[%emt 0:03:40]} Bd6 $146 {[%emt 0:03:13]} ({Predecessor:} 11... Be7 12. Nd2 Bxg2 13. Kxg2 Qc7 14. Nc4 O-O 15. Bf4 Qc6+ {0-1 (44) Schneider,A (2337)-Szilagyi,P (2424) Hungary 2003}) 12. Nd2 {[%emt 0:09:08]} Bxg2 {[%emt 0:00:54]} 13. Kxg2 {[%emt 0:00:05]} Qc7 {[%emt 0:08:52]} 14. Nde4 {[%emt 0:07:08]} Nxe4 {[%emt 0:03:39]} 15. Nxe4 {[%emt 0:00:32]} O-O {[%emt 0:03:16]} 16. Bd2 {[%emt 0:10:04]} Rce8 {[%emt 0:05:25]} 17. Nxd6 {[%emt 0:05:34] The position is equal.} Qxd6 {[%emt 0:00:06]} 18. Bc3 {[%emt 0:00:23]} Qd5+ {[%emt 0:08:32]} 19. Qxd5 {[%emt 0:00:07]} exd5 {[%emt 0:00:04]} 20. Rfe1 {[%emt 0:02:50] Precision: White = 37%, Black = 28%.} d4 {[%emt 0:09:37]} 21. Bd2 {[%emt 0:00:07]} a5 {[%emt 0:02:30]} 22. Bf4 {[%emt 0:04:13]} Re6 {[%emt 0:01:15]} 23. Kf3 {[%emt 0:03:57]} Nf6 {[%emt 0:03:38]} 24. Bd2 {[%emt 0:05:20]} Rfe8 {[%emt 0:02:57]} 25. Rad1 {[%emt 0:04:49]} Nd5 {[%emt 0:03:14]} 26. e4 {[%emt 0:01:29]} dxe3 27. fxe3 {[%emt 0:00:17]} Rf6+ {[%emt 0:01:35]} 28. Kg2 Rd6 {[%emt 0:00:10]} 29. Kf3 {[%emt 0:03:39]} Red8 {[%emt 0:00:41]} 30. Ke2 {[%emt 0:01:01]} h5 {[%emt 0:01:24]} 31. Rf1 {[%emt 0:03:08]} g6 {[%emt 0:02:31]} 32. Rf3 {[%emt 0:01:21]} Ne7 {[%emt 0:01:43]} 33. Bc3 {[%emt 0:00:22]} c4 {[%emt 0:01:13]} 34. d4 {[%emt 0:02:13]} Re6 {[%emt 0:00:01]} 35. Kd2 {[%emt 0:01:01]} Nd5 {[%emt 0:00:21]} 36. Re1 {[%emt 0:00:52]} Rde8 {[%emt 0:00:05]} 37. Re2 {[%emt 0:00:24]} f5 {[%emt 0:01:04]} 38. h3 {[%emt 0:00:22]} Re4 {[%emt 0:00:15]} 39. Re1 {[%emt 0:00:36]} Kg7 {[%emt 0:00:42]} 40. Re2 {[%emt 0:00:10]} Kf6 {[%emt 0:00:41]} 41. Re1 {[%emt 0:30:30]} g5 {[%emt 0:02:00]} 42. g4 {[%emt 0:00:00]} hxg4 {[%emt 0:00:58]} 43. hxg4 {[%emt 0:00:00]} Rxg4 {[%emt 0:00:06]} 44. Rh3 {[%emt 0:00:00]} Rg2+ {[%emt 0:01:41]} 0-1

[Event "GER-chT Youth Countries 2018"]
[Site "Wurzburg"]
[Date "2018.10.03"]
[Round "1"]
[White "Wu, Leon"]
[Black "Riegel, Arinna"]
[Result "1/2-1/2"]
[ECO "B28"]
[WhiteElo "2009"]
[BlackElo "1881"]
[Annotator "NA RC"]
[PlyCount "104"]
[EventDate "2018.10.03"]
[EventType "team-tourn"]
[EventCountry "GER"]
[SourceTitle "playchess.com"]
[Source "ChessBase"]
[SourceQuality "1"]
[TimeControl "40/5400+30:1800+30"]

1. e4 {[%emt 0:00:00]} c5 {[%emt 0:00:00]} 2. Nf3 {[%emt 0:00:00]} a6 {[%emt 0:00:00]} 3. Nc3 {[%emt 0:00:59]} Nc6 {[%emt 0:00:18]} 4. a4 {[%emt 0:06:24]} e6 {[%emt 0:00:39]} 5. d4 {[%emt 0:00:49]} cxd4 {[%emt 0:00:14]} 6. Nxd4 {[%emt 0:00:27]} Qc7 {[%emt 0:00:22]} 7. Be2 {[%emt 0:01:02]} Nf6 {[%emt 0:00:06]} 8. O-O {[%emt 0:01:52]} Be7 {[%emt 0:00:11]} 9. Kh1 {[%emt 0:02:03]} d6 {[%emt 0:09:00]} 10. Be3 {[%emt 0:02:56]} Bd7 {[%emt 0:00:57]} 11. Qd2 {[%emt 0:02:28]} Rd8 {[%emt 0:01:51]} 12. Nb3 {[%emt 0:02:03]} Na5 {[%emt 0:16:33]} 13. Nxa5 {[%emt 0:06:11]} Qxa5 {[%emt 0:03:24]} 14. Rfb1 {[%emt 0:05:22]} Bc6 {[%emt 0:15:28]} 15. b4 {[%emt 0:04:14]} Qc7 {[%emt 0:00:16]} 16. a5 {[%emt 0:05:33]} Rd7 {[%emt 0:16:18]} 17. f3 {[%emt 0:03:26]} d5 {[%emt 0:04:29]} 18. Bb6 {[%emt 0:04:56]} dxe4 {[%emt 0:08:07]} 19. Qg5 {[%emt 0:09:44]} Qc8 {[%emt 0:00:58]} 20. Ra3 {[%emt 0:07:21]} (20. b5 $17 Bd5 21. Nxd5 Nxd5 22. Qg3 (22. Qxg7 $2 Bf6 $19) 22... exf3 23. Qxf3) 20... Nd5 {[%emt 0:07:43]} 21. Qg3 $2 {[%emt 0:02:52]} (21. Qxg7 $11 Bf6 22. Qh6 Bxc3 {[#]} 23. Rxc3 $1 {[%mdl 512]} Nxc3 24. Qg7) 21... exf3 {[%emt 0:06:44]} 22. Bxf3 {[%emt 0:05:16]} Nxb4 $2 (22... Nf6 $19 23. Be3 O-O) 23. Qxg7 {[%emt 0:01:26]} Rf8 {[%emt 0:01:20]} 24. Bh5 $2 {[%emt 0:02:40] [#]} (24. Ne4 $14 {keeps the upper hand.}) 24... Nxc2 $2 {[%emt 0:01:46]} ({Better is} 24... Nd5 $1 $19 {[%cal Rd5f4]} 25. Rab3 Nf6) 25. Rf1 $2 {[%emt 0:05:06]} (25. Rab3 $1 $11) 25... Bxa3 {[%emt 0:01:30]} 26. Qf6 {[%emt 0:03:28]} Re7 {[%emt 0:02:24]} 27. Rf2 {[%emt 0:03:42]} Ne1 {[%emt 0:00:43]} 28. h3 {[%emt 0:04:57]} Bxg2+ {[%emt 0:00:42]} 29. Kh2 {[%emt 0:01:00]} Bd6+ {[%emt 0:00:32]} 30. Kg1 {[%emt 0:00:09]} Nd3 {[%emt 0:00:35]} 31. Rxg2 {[%emt 0:01:31]} Be5 {[%emt 0:00:10]} 32. Ne4 {[%emt 0:01:05]} Qc1+ {[%emt 0:00:48]} 33. Qf1 {[%emt 0:00:18]} Qxf1+ {[%emt 0:00:47]} 34. Kxf1 {[%emt 0:00:06]} Rd7 {[%emt 0:01:26]} 35. Rc2 {[%emt 0:04:54]} Ke7 {[%emt 0:00:27]} 36. Be2 {[%emt 0:00:50]} f5 {[%emt 0:00:22]} 37. Ng5 {[%emt 0:00:46]} Rg8 {[%emt 0:00:27]} 38. Nf3 {[%emt 0:00:28]} Bf4 {[%emt 0:00:38]} 39. Rc4 {[%emt 0:00:32]} Bg3 {[%emt 0:00:21]} 40. Nd4 {[%emt 0:00:31]} Ne5 {[%emt 0:00:21]} 41. Rc3 {[%emt 0:00:39]} Bh2 {[%emt 0:05:33]} 42. Nb3 {[%emt 0:02:04]} Rg3 43. Rxg3 {[%emt 0:00:07]} Bxg3 {[%emt 0:01:18]} 44. Nc5 {[%emt 0:00:16]} Rd5 {[%emt 0:01:06]} 45. Nxb7 {[%emt 0:00:14]} f4 {[%emt 0:01:09]} 46. Nc5 {[%emt 0:01:09]} f3 {[%emt 0:01:35]} 47. Bxf3 {[%emt 0:00:19]} Nxf3 {[%emt 0:00:04]} 48. Kg2 {[%emt 0:00:47]} Bd6 {[%emt 0:00:06]} 49. Nxa6 {[%emt 0:00:36]} Ne5 {[%emt 0:00:42]} 50. Nc7 $19 {[%emt 0:01:15]} Bxc7 {[%emt 0:00:40]} 51. Bxc7 {[%emt 0:00:05]} Nc6 {[%emt 0:00:04]} 52. a6 {[%emt 0:00:07]} Rd2+ {[%emt 0:00:09]} 1/2-1/2

[Event "GER-chT Youth Countries 2018"]
[Site "Wurzburg"]
[Date "2018.10.03"]
[Round "1"]
[White "Boehm, Jana"]
[Black "Wagner, Margarethe"]
[Result "1-0"]
[ECO "B90"]
[WhiteElo "2001"]
[BlackElo "1643"]
[Annotator "NA"]
[PlyCount "59"]
[EventDate "2018.10.03"]
[EventType "team-tourn"]
[EventCountry "GER"]
[SourceTitle "playchess.com"]
[Source "ChessBase"]
[SourceQuality "1"]
[TimeControl "40/5400+30:1800+30"]

1. e4 c5 {[%emt 0:00:00]} 2. Nf3 {[%emt 0:00:01]} d6 {[%emt 0:00:00]} 3. d4 {[%emt 0:00:00]} cxd4 {[%emt 0:00:00]} 4. Nxd4 {[%emt 0:00:00]} Nf6 {[%emt 0:00:00]} 5. Nc3 {[%emt 0:00:00]} a6 {[%emt 0:00:15]} 6. Be3 {[%emt 0:00:00]} e5 {[%emt 0:00:29]} 7. Nb3 {[%emt 0:00:04]} Be6 {[%emt 0:00:43]} 8. f3 {[%emt 0:00:17]} Be7 {[%emt 0:00:40]} 9. Qd2 {[%emt 0:00:25]} h5 {[%emt 0:00:55]} 10. O-O-O {[%emt 0:03:30]} Nbd7 {[%emt 0:01:01]} 11. h3 {[%emt 0:02:00] B90: Sicilian Najdorf: Unusual White 6th moves, 6 Be3 Ng4 and 6 Be3 e5} (11. Nd5 Nxd5 12. exd5 Bf5 13. Bd3 Bxd3 14. Qxd3 Bg5 15. Kb1 Bxe3 16. Qxe3 Rc8 17. h4 Nf6 18. Qd3 Qc7 {1-0 (32) Aronian,L (2767)-Dominguez Perez,L (2739) Saint Louis 2018}) 11... h4 {[%emt 0:01:58]} 12. Kb1 {[%emt 0:09:18]} Rc8 {[%emt 0:01:30]} 13. Bd3 {[%emt 0:01:54]} Nh5 {[%emt 0:15:11]} 14. Nd5 $146 {[%emt 0:09:26]} ({Predecessor:} 14. Rhe1 g6 15. Bf1 Qc7 16. Qf2 Kf8 17. Nd5 Bxd5 18. Rxd5 b5 19. Rc1 Nhf6 {1-0 (37) Van der Weide,K (2446)-Ftacnik,L (2579) Amsterdam 2006}) 14... Bxd5 {[%emt 0:06:02]} 15. exd5 {[%emt 0:00:23]} Ng3 {[%emt 0:01:39]} 16. Rhe1 {[%emt 0:00:46]} Nf6 {[%emt 0:10:02]} 17. Bf2 {[%emt 0:06:59]} Nfh5 {[%emt 0:03:41]} 18. Qb4 {[%emt 0:07:23]} b5 {[%emt 0:04:02]} 19. Bxg3 {[%emt 0:16:54]} hxg3 {[%emt 0:02:18]} 20. a4 {[%emt 0:10:03]} bxa4 {[%emt 0:05:07]} 21. Qxa4+ {[%emt 0:00:28]} Kf8 {[%emt 0:01:10]} 22. Na5 {[%emt 0:04:26]} Qb6 {[%emt 0:01:49]} 23. Nc6 {[%emt 0:01:28]} Nf4 {[%emt 0:03:32]} 24. Nxe7 {[%emt 0:06:43]} ({Falsch wäre} 24. Bxa6 $2 Ra8 $19) 24... Kxe7 {[%emt 0:00:12]} 25. Qxf4 {[%emt 0:00:18]} Rb8 {[%emt 0:04:31]} 26. b3 {[%emt 0:01:21]} Qf2 {[%emt 0:07:04] [#]} 27. Rxe5+ $1 {[%emt 0:01:28]} Kf8 {[%emt 0:02:25]} 28. Rf5 {[%emt 0:02:10]} Qa7 {[%emt 0:02:49]} 29. Qxd6+ $18 {[%emt 0:00:09]} Kg8 {[%emt 0:00:27]} 30. Re1 {[%emt 0:03:07]} 1-0